[Event "NY Presidents Day Schiller-C 2024"]
[Site "New York"]
[Date "2024.02.18"]
[Round "5.5"]
[White "Yoo, Eugene"]
[Black "Plat, Vojtech"]
[Result "0-1"]
[ECO "E68"]
[WhiteElo "2168"]
[BlackElo "2516"]
[Annotator "TA"]
[PlyCount "94"]
[EventDate "2024.02.14"]
[EventType "schev"]
[EventCountry "USA"]
[SourceTitle "playchess.com"]
[Source "ChessBase"]
[SourceQuality "1"]
[TimeControl "5400+30"]

{[%evp 20,94,62,35,38,14,34,43,43,47,24,31,32,16,37,0,0,0,20,0,0,-30,-16,-36,-28,-15,-43,-46,0,-452,-96,-235,0,-170,-154,-163,-158,-187,-135,-212,-110,-286,-290,-293,-256,-262,-90,-375,0,-647,-635,-641,-641,-609,-612,-29993,-29994,-29994,-29995,-29995,-29996,-29996,-29993,-29995,-29996,-29996,-29995,-29995,-29996,-29996,-29996,-29997,-29997,-29997,-29998,-29998,-29999]} 1. c4 {[%emt 0:09:34]} e5 {[%emt 0:00:07]} 2. Nc3 {[%emt 0:00:19]} Nf6 {[%emt 0:00:12]} 3. Nf3 {[%emt 0:00:07]} d6 {[%emt 0:00:04]} 4. d4 {[%emt 0:00:24]} exd4 {[%emt 0:00:06]} 5. Nxd4 {[%emt 0:00:04]} g6 {[%emt 0:00:07]} 6. g3 {[%emt 0:00:32]} Bg7 {[%emt 0:00:05]} 7. Bg2 {[%emt 0:00:04]} O-O {[%emt 0:00:05]} 8. O-O {[%emt 0:00:18]} a5 {[%emt 0:00:12]} 9. h3 {[%emt 0:04:51]} Nbd7 {[%emt 0:00:12]} 10. e4 {[%emt 0:01:36]} Nc5 {[%emt 0:01:38]} 11. Re1 {[%emt 0:05:44]} a4 {[%emt 0:00:15]} 12. Rb1 {[%emt 0:02:38]} Nfd7 {[%emt 0:00:37]} (12... Re8 $5) 13. f4 {[%emt 0:03:55]} Re8 {[%emt 0:00:39]} 14. Be3 {[%emt 0:01:52]} c6 {[%emt 0:01:39]} 15. b4 {[%emt 0:03:23]} axb3 {[%emt 0:00:04]} 16. axb3 {[%emt 0:00:06]} Ra3 {[%emt 0:03:50]} 17. Qc2 {[%emt 1:03:33]} f5 {[%emt 0:00:38]} 18. Bf2 {[%emt 0:00:00]} (18. exf5 $2 Rxe3 19. Ne6 Rxc3 $19) 18... fxe4 {[%emt 0:00:45]} 19. Nxe4 {[%emt 0:00:00]} Nxe4 {[%emt 0:01:03]} 20. Bxe4 {[%emt 0:00:00]} Nc5 {[%emt 0:06:19]} 21. g4 $1 {[%emt 0:00:00]} (21. Bg2 $2 Bxd4 22. Rxe8+ (22. Bxd4 $2 Bf5 $19) 22... Qxe8 $17) 21... Rf8 {[%emt 0:02:11]} 22. Ne2 {[%emt 0:00:00]} Nxe4 {[%emt 0:00:39]} 23. Qxe4 {[%emt 0:00:00]} Ra2 {[%emt 0:01:03]} (23... Qf6 $15 {is more appropriate.}) 24. Nc1 $2 {[%emt 0:00:00][%mdl 8192]} (24. Rbd1 $11) 24... d5 $2 {[%emt 0:03:05]} (24... Rxf2 $1 $19 {has better winning chances.} 25. Kxf2 Qh4+ 26. Kg2 Bxg4 (26... Rxf4 27. Qxf4 Qxe1 28. Qf3 $17) 27. hxg4 Qxg4+ 28. Kh2 Rf5 (28... Qh4+ $2 29. Kg2 $19) 29. Qe6+ Kh8 30. Qxf5 (30. Qxd6 $2 Rh5#) (30. Qe8+ $2 Bf8 $19) 30... Qxf5 31. Re8+ Bf8) 25. cxd5 {[%emt 0:00:00]} (25. Qe3 $17 Rc2 26. Ne2) 25... cxd5 $2 {[%emt 0:01:28]} (25... Rxf2 $1 $19 26. Kxf2 Qh4+ 27. Ke2 (27. Kg2 Bxg4 28. Ne2 Qxh3+ 29. Kg1 Kh8 $19) 27... Qxh3) 26. Qe7 $2 {[%emt 0:00:00]} (26. Qf3 $1 $11 {and White is okay.} Rd2 27. Ne2) 26... Qxe7 $1 $19 {[%emt 0:00:32]} 27. Rxe7 {[%emt 0:00:00]} Rd2 {[%emt 0:00:12]} 28. Bc5 {[%emt 0:01:38]} b6 {[%emt 0:02:06]} (28... Rxf4 29. Re8+ Kf7 30. Rxc8 $11) (28... h5 $19 29. Re1 hxg4 (29... Rxf4 30. Re8+ Kh7 31. Rxc8 $15)) 29. Bxb6 {[%emt 0:00:55]} (29. Rxg7+ $17 {was called for.} Kxg7 30. Bxf8+ Kxf8 31. Ra1) 29... Ba6 {[%emt 0:00:58]} (29... Rxf4 30. Ne2 Rf8 31. Bc5) (29... Rd1+ $19 30. Kf2 Rxf4+ 31. Ke2 Rh1 32. Re8+ Rf8 33. Rxf8+ Kxf8 (33... Bxf8 $2 34. Kf2 $19)) 30. b4 $2 {[%emt 0:02:16]} (30. Re1 $17 {only move.}) 30... Rd1+ $1 $19 {[%emt 0:01:10]} (30... Rxf4 31. b5 Rd1+ 32. Kg2 Bxb5 33. Rxb5 $11) 31. Kh2 {[%emt 0:00:05]} Bc4 {[%emt 0:01:36]} (31... Rxf4 32. b5 Bf6 33. Re8+ Kf7 34. bxa6 $17) 32. Bc5 {[%emt 0:01:34]} Ra8 $2 {[%emt 0:01:42]} (32... Rxf4 33. Re8+ Kf7 34. Re7+ Kg8 35. Re8+ Kf7 36. Re7+ Kg8 $11) (32... Ba2 33. Rxg7+ Kxg7 34. Bxf8+ (34. Nxa2 $2 Rxb1 35. Bxf8+ Kxf8 $19) 34... Kxf8 35. Rb2 Rxc1 36. Rxa2 $11) (32... Rc8 $19 {and Black stays clearly on top. Strongly threatening ...d4.} 33. Bf2 Bb5 (33... Ba2 $2 34. Rxg7+ Kxg7 35. Rb2 $19)) 33. Kg3 $2 {[%emt 0:00:50][%mdl 8192]} (33. b5 $17 {was the only defense.} Ba2 34. Rxg7+ Kxg7 35. Ra1) 33... Ra3+ $2 {[%emt 0:01:37]} (33... Ba2 34. Rxg7+ Kxg7 35. Ra1 Ra3+ 36. Kh4 $19) (33... Bf6 $19 34. Re6 Ra3+ 35. Rb3 Bxb3) 34. Kf2 $2 {[%emt 0:00:14][%mdl 8192] [#]} (34. Rb3 $11 Bxb3 35. Re8+ Bf8 (35... Kf7 36. Re7+ Kg8 37. Re8+ $11) 36. Rxf8+ (36. b5 Ra5 $11) 36... Kg7 37. b5) 34... Bf6 $1 $19 {[%emt 0:03:24]} (34... Rxh3 35. Re8+ Kf7 36. Re7+ Kf6 (36... Kg8 37. Re8+ Kf7 38. Re7+ Kf6 39. Kg2 $17) 37. Kg2 (37. g5+ $2 Kf5 $19) 37... Bf1+ 38. Kf2 $17) 35. Re8+ {[%emt 0:00:01] [#]} Kf7 $1 {[%emt 0:00:09]} 36. Rf8+ {[%emt 0:00:01]} Kg7 {[%emt 0:00:06]} 37. b5 {[%emt 0:01:15]} Bh4+ {[%emt 0:00:33]} 38. Kg2 {[%emt 0:00:01]} Bf1+ {[%emt 0:02:02]} 39. Kg1 {[%emt 0:00:49]} Rg3+ {[%emt 0:01:31]} 40. Kh2 {[%emt 0:00:39]} Rd2+ {[%emt 0:00:31]} 41. Kh1 {[%emt 0:00:08]} Bg2+ {[%emt 0:00:12]} 42. Kg1 {[%emt 0:00:15]} Bxh3+ {[%emt 0:00:21]} 43. Kh1 {[%emt 0:00:03]} Bg2+ {[%emt 0:00:06]} 44. Kg1 {[%emt 0:00:10]} Be4+ {[%emt 0:00:52]} 45. Kf1 {[%emt 0:00:04]} Rf3+ {[%emt 0:00:07]} 46. Kg1 {[%emt 0:00:07]} Rd1+ {[%emt 0:00:02]} 47. Kh2 {[%emt 0:00:49]} Rh3+ {[%emt 1:07:08]} 0-1

[Event "NY Presidents Day Schiller-C 2024"]
[Site "New York"]
[Date "2024.02.18"]
[Round "5.6"]
[White "Liu, Kelsey"]
[Black "Martin Del Campo Cardenas, Roberto Abel"]
[Result "0-1"]
[ECO "B50"]
[WhiteElo "2004"]
[BlackElo "2205"]
[Annotator "RC"]
[PlyCount "46"]
[EventDate "2024.02.14"]
[EventType "schev"]
[EventCountry "USA"]
[SourceTitle "playchess.com"]
[Source "ChessBase"]
[SourceQuality "1"]
[TimeControl "5400+30"]

1. e4 {[%emt 0:00:04]} c5 {[%emt 0:00:30]} 2. Nf3 {[%emt 0:00:14]} d6 {[%emt 0:00:06]} 3. c3 {[%emt 0:00:06]} Nf6 {[%emt 0:00:32]} 4. h3 {[%emt 0:00:06]} Nc6 {[%emt 0:00:17]} 5. Bd3 {[%emt 0:00:07]} e5 {[%emt 0:00:15]} 6. Bc2 {[%emt 0:00:47]} d5 {[%emt 0:00:36]} 7. exd5 {[%emt 0:00:12]} Qxd5 {[%emt 0:00:05]} 8. d3 {[%emt 0:02:53]} Bf5 {[%emt 0:00:54]} 9. Nh4 {[%emt 0:11:52]} Be6 {[%emt 0:05:01]} 10. O-O {[%emt 0:01:44]} O-O-O {[%emt 0:00:44]} 11. Nd2 {[%emt 0:01:42]} g5 {[%emt 1:27:00]} 12. Nhf3 {[%emt 0:12:04]} g4 {[%emt 0:00:00]} 13. hxg4 {[%emt 0:06:55]} Bxg4 {[%emt 0:00:00]} 14. Qe2 {[%emt 0:02:39]} Rg8 {[%emt 0:00:00]} 15. Re1 {[%emt 0:04:02]} e4 {[%emt 0:00:00]} 16. dxe4 {[%emt 0:13:17]} Qh5 {[%emt 0:00:00]} 17. Bd1 {[%emt 0:09:04]} Ne5 {[%emt 0:00:00]} 18. Qe3 {[%emt 0:10:08]} Rd3 {[%emt 0:00:00]} 19. Qf4 {[%emt 0:00:57]} Bxf3 {[%emt 0:00:00]} 20. Qf5+ {[%emt 0:01:31]} Qxf5 {[%emt 0:00:00]} 21. exf5 {[%emt 0:00:02]} Bxg2 {[%emt 0:00:00]} 22. Rxe5 {[%emt 0:04:05]} Rh3 {[%emt 0:00:00]} 23. Bg4 {[%emt 0:04:02]} Rxg4 {[%emt 0:00:00]} 0-1

[Event "NY Presidents Day Schiller-C 2024"]
[Site "New York"]
[Date "2024.02.18"]
[Round "5.7"]
[White "Gaw, Chloe"]
[Black "Podavonov, Alisher"]
[Result "1-0"]
[ECO "D35"]
[WhiteElo "1928"]
[BlackElo "2175"]
[Annotator "RC"]
[PlyCount "87"]
[EventDate "2024.02.14"]
[EventType "schev"]
[EventCountry "USA"]
[SourceTitle "playchess.com"]
[Source "ChessBase"]
[SourceQuality "1"]
[TimeControl "5400+30"]

1. d4 {[%emt 0:00:02]} d5 {[%emt 0:00:14]} 2. c4 {[%emt 0:00:07]} e6 {[%emt 0:00:04]} 3. Nc3 {[%emt 0:00:04]} Be7 {[%emt 0:00:04]} 4. cxd5 {[%emt 0:00:19]} exd5 {[%emt 0:00:02]} 5. Bf4 {[%emt 0:00:07]} c6 {[%emt 0:00:31]} 6. e3 {[%emt 0:00:03]} Nf6 {[%emt 0:01:22]} 7. Bd3 {[%emt 0:00:19]} Nbd7 {[%emt 0:00:32]} 8. Nge2 {[%emt 0:00:59]} Nf8 {[%emt 0:00:36]} 9. Qc2 {[%emt 0:02:21]} Ne6 {[%emt 0:07:05]} 10. Bg3 {[%emt 0:00:54]} O-O {[%emt 0:01:38]} 11. O-O {[%emt 0:00:54]} Re8 {[%emt 0:00:42]} 12. Kh1 {[%emt 0:03:04]} g6 {[%emt 0:01:59]} 13. f3 {[%emt 0:02:56]} c5 {[%emt 0:01:13]} 14. dxc5 {[%emt 0:01:25]} Bxc5 {[%emt 0:01:50]} 15. Bf2 {[%emt 0:03:56]} a6 {[%emt 0:05:16]} 16. Rad1 {[%emt 0:02:06]} b5 {[%emt 0:06:47]} 17. Bh4 {[%emt 0:13:46]} g5 {[%emt 0:09:02]} 18. Bf2 {[%emt 0:01:18]} Bb7 {[%emt 0:02:57]} 19. e4 {[%emt 0:28:36]} Bxf2 {[%emt 0:01:25]} 20. Rxf2 {[%emt 0:03:56]} Qb6 {[%emt 0:00:17]} 21. Rff1 {[%emt 0:07:02]} Rac8 {[%emt 0:20:30]} 22. e5 {[%emt 0:04:47]} Nd7 {[%emt 0:00:59]} 23. Bxh7+ {[%emt 0:06:52]} Kg7 {[%emt 0:00:07]} 24. f4 {[%emt 0:09:34]} b4 {[%emt 0:09:09]} 25. f5 {[%emt 0:01:53]} bxc3 {[%emt 0:15:40]} 26. fxe6 {[%emt 0:00:22]} Qxe6 {[%emt 0:00:46]} 27. Nd4 {[%emt 0:02:02]} Qxe5 {[%emt 0:01:25]} 28. Bf5 {[%emt 0:01:36]} Rc7 {[%emt 0:03:17]} 29. Qc1 {[%emt 0:01:09]} Kh6 {[%emt 0:03:36]} 30. bxc3 {[%emt 0:00:59]} Nf6 {[%emt 0:01:51]} 31. Rde1 {[%emt 0:00:22]} Ne4 {[%emt 0:00:25]} 32. Bxe4 {[%emt 0:00:41]} dxe4 {[%emt 0:00:04]} 33. Rf5 {[%emt 0:00:44]} Qe7 {[%emt 0:00:53]} 34. Qe3 {[%emt 0:01:01]} Bc8 {[%emt 0:00:39]} 35. Ref1 {[%emt 0:00:26]} Kg6 {[%emt 0:02:12]} 36. R5f2 {[%emt 0:00:48]} Qe5 {[%emt 0:01:00]} 37. Kg1 {[%emt 0:00:32]} Rf8 {[%emt 0:00:55]} 38. Nf3 {[%emt 0:00:21]} Qe7 {[%emt 0:00:41]} 39. Nxg5 {[%emt 0:00:23]} f5 {[%emt 0:00:54]} 40. Nxe4 {[%emt 0:00:23]} Re8 {[%emt 0:00:53]} 41. Qg3+ {[%emt 0:00:08]} Kf7 {[%emt 0:00:33]} 42. Nd6+ {[%emt 0:00:25]} Kf8 {[%emt 0:00:10]} 43. Nxf5 {[%emt 0:02:18]} Qe5 {[%emt 0:00:30]} 44. Ne7+ {[%emt 0:00:00]} 1-0

[Event "NY Presidents Day Schiller-C 2024"]
[Site "New York"]
[Date "2024.02.18"]
[Round "5.8"]
[White "Lapshun, Yury"]
[Black "Mou, Iris"]
[Result "0-1"]
[ECO "A46"]
[WhiteElo "2337"]
[BlackElo "2128"]
[Annotator "RC"]
[PlyCount "104"]
[EventDate "2024.02.14"]
[EventType "schev"]
[EventCountry "USA"]
[SourceTitle "playchess.com"]
[Source "ChessBase"]
[SourceQuality "1"]
[TimeControl "5400+30"]

1. d4 {[%emt 0:13:21]} Nf6 {[%emt 0:00:12]} 2. Nf3 {[%emt 0:00:04]} e6 {[%emt 0:00:18]} 3. Bg5 {[%emt 0:00:10]} h6 {[%emt 0:00:24]} 4. Bxf6 {[%emt 0:00:23]} Qxf6 {[%emt 0:00:12]} 5. e4 {[%emt 0:00:13]} d6 {[%emt 0:00:45]} 6. Nc3 {[%emt 0:00:22]} g6 {[%emt 0:01:54]} 7. Bc4 {[%emt 0:01:17]} Bg7 {[%emt 0:01:17]} 8. e5 {[%emt 0:00:53]} Qe7 {[%emt 0:02:15]} 9. Qe2 {[%emt 0:00:48]} d5 {[%emt 0:04:48]} 10. Bd3 {[%emt 0:00:27]} c5 {[%emt 0:01:14]} 11. dxc5 {[%emt 0:01:24]} Qxc5 {[%emt 0:00:37]} 12. Nb5 {[%emt 0:00:27]} O-O {[%emt 0:01:16]} 13. O-O {[%emt 0:03:14]} a6 {[%emt 0:08:03]} 14. Nbd4 {[%emt 0:00:17]} Nd7 {[%emt 0:02:47]} 15. c3 {[%emt 0:00:41]} b5 {[%emt 0:00:55]} 16. a4 {[%emt 0:06:08]} bxa4 {[%emt 0:07:04]} 17. Rxa4 {[%emt 0:02:26]} Qc7 {[%emt 0:00:23]} 18. Re1 {[%emt 0:04:05]} Nc5 {[%emt 0:04:01]} 19. Ra3 {[%emt 0:00:19]} Nxd3 {[%emt 0:00:34]} 20. Qxd3 {[%emt 0:00:04]} Bb7 {[%emt 0:03:51]} 21. h4 {[%emt 0:08:59]} Rfc8 {[%emt 0:10:02]} 22. Ra4 {[%emt 0:02:32]} Qd7 {[%emt 0:04:29]} 23. Ra2 {[%emt 0:03:11]} Rc4 {[%emt 0:05:55]} 24. Qe3 {[%emt 0:03:26]} Qe7 {[%emt 0:03:13]} 25. Rea1 {[%emt 0:02:51]} Rb8 {[%emt 0:03:57]} 26. Ra3 {[%emt 0:00:43]} Bc8 {[%emt 0:02:21]} 27. Qe2 {[%emt 0:01:16]} Qc7 {[%emt 0:02:14]} 28. R3a2 {[%emt 0:02:28]} Rc5 {[%emt 0:01:52]} 29. Ra4 {[%emt 0:00:58]} Rb6 {[%emt 0:02:17]} 30. Re1 {[%emt 0:02:30]} Qb8 {[%emt 0:01:00]} 31. Ra2 {[%emt 0:00:26]} a5 {[%emt 0:01:47]} 32. Qd2 {[%emt 0:07:13]} Ba6 {[%emt 0:03:38]} 33. b3 {[%emt 0:05:51]} Qc7 {[%emt 0:01:53]} 34. Re3 {[%emt 0:01:29]} Bc8 {[%emt 0:01:31]} 35. Qe1 {[%emt 0:02:16]} Bd7 {[%emt 0:02:02]} 36. Qa1 {[%emt 0:01:22]} Rb8 {[%emt 0:00:56]} 37. Rc2 {[%emt 0:02:06]} h5 {[%emt 0:03:01]} 38. Qe1 {[%emt 0:04:47]} a4 {[%emt 0:00:52]} 39. bxa4 {[%emt 0:00:03]} Rc4 {[%emt 0:03:14]} 40. Ra2 {[%emt 0:01:06]} Rxa4 {[%emt 0:02:27]} 41. Rxa4 {[%emt 0:00:13]} Bxa4 {[%emt 0:00:06]} 42. Qa1 {[%emt 0:03:08]} Bb3 {[%emt 0:03:47]} 43. Nd2 {[%emt 0:09:02]} Bc4 {[%emt 0:00:19]} 44. f4 {[%emt 0:00:06]} Bh6 {[%emt 0:01:58]} 45. Rf3 {[%emt 0:01:11]} Bf8 {[%emt 0:01:27]} 46. Kh2 {[%emt 0:03:25]} Qd8 {[%emt 0:02:20]} 47. g3 {[%emt 0:00:33]} Ra8 {[%emt 0:00:20]} 48. Qb1 {[%emt 0:01:01]} Ra2 {[%emt 0:00:43]} 49. Qe1 {[%emt 0:03:04]} Qb6 {[%emt 0:01:11]} 50. Kh3 {[%emt 0:00:36]} Qb2 {[%emt 0:00:20]} 51. Rf2 {[%emt 0:00:17]} Qxc3 {[%emt 0:00:08]} 52. N4f3 {[%emt 0:00:04]} Ra1 {[%emt 0:00:33]} 0-1

[Event "NY Presidents Day Schiller-C 2024"]
[Site "New York"]
[Date "2024.02.18"]
[Round "5.9"]
[White "Campos Jimenez, Augusto Cesar"]
[Black "Shangin, Lev"]
[Result "1-0"]
[ECO "B43"]
[WhiteElo "2288"]
[BlackElo "1866"]
[Annotator "TA"]
[PlyCount "57"]
[EventDate "2024.02.14"]
[EventType "schev"]
[EventCountry "USA"]
[SourceTitle "playchess.com"]
[Source "ChessBase"]
[SourceQuality "1"]
[TimeControl "5400+30"]

{[%evp 15,57,-9,0,-44,-46,-47,-35,-51,-38,-132,-120,-146,-119,-203,-197,-193,-205,-195,-175,-180,162,183,234,221,222,228,219,205,314,284,358,352,339,329,461,448,472,468,454,461,606,652,731,702]} 1. e4 {[%emt 0:03:46]} c5 {[%emt 0:00:48]} 2. Nf3 {[%emt 0:00:44]} e6 {[%emt 0:00:35]} 3. Nc3 {[%emt 0:00:26]} a6 {[%emt 0:00:32]} 4. g3 {[%emt 0:00:49]} b5 {[%emt 0:01:03]} 5. d4 {[%emt 0:00:06]} cxd4 {[%emt 0:01:09]} 6. Nxd4 {[%emt 0:00:05]} Bb7 {[%emt 0:01:08]} 7. Bg2 {[%emt 0:00:04]} Nf6 {[%emt 0:00:29]} 8. O-O {[%emt 0:00:37]} b4 $1 {[%emt 0:00:49]} 9. Nd5 {[%emt 0:00:39]} exd5 {[%emt 0:08:34]} 10. exd5 {[%emt 0:01:10] [#] And now Re1+ would win.} Bc5 $1 {[%emt 0:03:42][%cal Oe8g8] aiming for ...0-0!} 11. Re1+ {[%emt 0:00:40] Black is slightly better.} Kf8 {[%emt 0:01:00][%cal Od7d6]} 12. Nf5 {[%emt 0:00:42]} (12. Nb3 $15 Bb6 13. a4) 12... d6 $17 {[%emt 0:04:52]} 13. Bf4 {[%emt 0:05:24]} Bc8 {[%emt 0:01:32]} 14. Ne7 {[%emt 0:08:47]} (14. Nd4 $17) 14... Ra7 $19 {[%emt 0:05:52]} 15. Nxc8 {[%emt 0:02:48]} (15. Nc6 Nxc6 16. dxc6 Ng4 $19) 15... Qxc8 {[%emt 0:00:36]} 16. Qd2 {[%emt 0:00:15]} h6 {[%emt 0:02:44]} 17. a3 {[%emt 0:00:10]} bxa3 {[%emt 0:00:44][%mdl 8192]} (17... Rb7 $19 {and life is good for Black. ...bxa3 would now be deadly.} 18. axb4 Rxb4 (18... Bxb4 19. c3 $17)) 18. b4 $18 {[%emt 0:00:13]} Bb6 {[%emt 0:00:27]} 19. Bxd6+ {[%emt 0:00:15]} ({Stronger than} 19. Rxa3 Qd8 20. h4 Ng4 $15) 19... Kg8 {[%emt 0:00:06] [#]} 20. c4 $1 {[%emt 0:00:40][%cal Bc2c4,Bc4c5,Bc5c6][%mdl 32]} Kh7 {[%emt 0:01:36]} 21. c5 {[%emt 0:00:41]} (21. Rxa3 Qxc4 22. Rc3 Qg4 $11 (22... Qd4 $2 23. Qc2+ g6 24. Rc4 $18)) 21... Bd8 {[%emt 0:03:05]} (21... Bc7 {might work better.}) 22. Rxa3 {[%emt 0:01:01]} Re8 {[%emt 0:01:58]} 23. Rae3 {[%emt 0:02:47]} (23. Qd3+ Kg8 24. Raa1 Be7 $18) 23... Rxe3 {[%emt 0:00:30]} 24. Qxe3 {[%emt 0:00:02] Hoping for c6.} Rb7 {[%emt 0:05:54]} (24... Nbd7 {was called for.} 25. Bh3 Qa8) 25. c6 {[%emt 0:01:33] White is clearly winning.} Rb5 {[%emt 0:01:12]} 26. Bc5 {[%emt 0:00:10] Against Bb6. A strong pair of Bishops.} Kg8 {[%emt 0:04:21]} 27. Bf1 {[%emt 0:00:31]} Rxc5 {[%emt 0:01:27]} 28. Qxc5 {[%emt 0:00:11]} Qc7 {[%emt 0:00:57]} 29. Bg2 {[%emt 0:01:07] Weighted Error Value: White=0.20 (precise) /Black=0.54.  Missed win:     	---       	Black=1      Mistake:       	White=2     	Black=2      Inaccurate:     	---       	Black=1      OK:         	White=8     	Black=5      Best:        	White=1     	Black=4      Strong:       	White=1     	Black=1} 1-0

[Event "NY Presidents Day Schiller-C 2024"]
[Site "New York"]
[Date "2024.02.18"]
[Round "6.1"]
[White "Ho, Carter"]
[Black "Czebe, Attila"]
[Result "0-1"]
[ECO "B06"]
[WhiteElo "2180"]
[BlackElo "2346"]
[Annotator "RC"]
[PlyCount "94"]
[EventDate "2024.02.14"]
[EventType "schev"]
[EventCountry "USA"]
[SourceTitle "playchess.com"]
[Source "ChessBase"]
[SourceQuality "1"]
[TimeControl "5400+30"]

1. e4 {[%emt 0:01:34]} g6 {[%emt 0:02:49]} 2. d4 {[%emt 0:00:36]} Bg7 {[%emt 0:00:20]} 3. Nc3 {[%emt 0:00:13]} Nc6 {[%emt 0:00:48]} 4. d5 {[%emt 1:30:07]} Nb8 {[%emt 0:00:07]} 5. Be3 {[%emt 0:00:00]} d6 {[%emt 0:00:05]} 6. Qd2 {[%emt 0:00:00]} c6 {[%emt 0:00:20]} 7. O-O-O {[%emt 0:00:00]} Nd7 {[%emt 0:02:07]} 8. Nf3 {[%emt 0:00:00]} a6 {[%emt 0:00:53]} 9. Bd4 {[%emt 0:00:00]} Ngf6 {[%emt 0:01:03]} 10. Be3 {[%emt 0:00:00]} cxd5 {[%emt 0:04:58]} 11. exd5 {[%emt 0:00:00]} b5 {[%emt 0:02:10]} 12. a3 {[%emt 0:00:00]} Bb7 {[%emt 0:01:05]} 13. Bh6 {[%emt 0:00:00]} Bxh6 {[%emt 0:01:09]} 14. Qxh6 {[%emt 0:00:00]} Qb6 {[%emt 0:09:10]} 15. Ng5 {[%emt 0:00:00]} Qxf2 {[%emt 0:01:26]} 16. Nge4 {[%emt 0:00:00]} Ng4 {[%emt 0:00:08]} 17. Qg5 {[%emt 0:00:00]} Qf5 {[%emt 0:07:38]} 18. Qd2 {[%emt 0:00:00]} Ndf6 {[%emt 0:04:13]} 19. Bd3 {[%emt 0:05:57]} Nxe4 {[%emt 0:00:06]} 20. Nxe4 {[%emt 0:00:05]} Qxd5 {[%emt 0:00:57]} 21. Rde1 {[%emt 0:01:50]} Ne5 {[%emt 0:00:16]} 22. Kb1 {[%emt 0:00:21]} Qc6 {[%emt 0:01:43]} 23. Qh6 {[%emt 0:00:24]} O-O-O {[%emt 0:00:37]} 24. Nc3 {[%emt 0:00:39]} f6 {[%emt 0:02:12]} 25. Qg7 {[%emt 0:00:13]} Qd7 {[%emt 0:00:42]} 26. Be4 {[%emt 0:00:26]} d5 {[%emt 0:01:28]} 27. Rd1 {[%emt 0:00:24]} Rhg8 {[%emt 0:00:07]} 28. Qh6 {[%emt 0:00:24]} Qe6 {[%emt 0:00:57]} 29. Bf3 {[%emt 0:00:15]} g5 {[%emt 0:01:50]} 30. Rhe1 {[%emt 0:01:15]} Qf7 {[%emt 0:00:36]} 31. Ne2 {[%emt 0:00:25]} g4 {[%emt 0:00:19]} 32. Nd4 {[%emt 0:00:17]} gxf3 {[%emt 0:00:10]} 33. gxf3 {[%emt 0:00:04]} Kb8 {[%emt 0:01:46]} 34. f4 {[%emt 0:00:15]} Nc6 {[%emt 0:00:07]} 35. Ne6 {[%emt 0:00:09]} Rd6 {[%emt 0:00:49]} 36. Nc5 {[%emt 0:00:25]} Bc8 {[%emt 0:00:18]} 37. a4 {[%emt 0:00:14]} Ka7 {[%emt 0:02:28]} 38. axb5 {[%emt 0:00:46]} axb5 {[%emt 0:00:10]} 39. f5 {[%emt 0:00:12]} Kb6 {[%emt 0:04:31]} 40. Nb3 {[%emt 0:00:14]} Bxf5 {[%emt 0:00:42]} 41. Qe3+ {[%emt 0:00:12]} Kc7 {[%emt 0:00:42]} 42. Qc5 {[%emt 0:00:21]} e5 {[%emt 0:00:45]} 43. Na5 {[%emt 0:00:58]} Ra8 {[%emt 0:00:49]} 44. b4 {[%emt 0:00:03]} d4 {[%emt 0:00:37]} 45. Kb2 {[%emt 0:00:35]} Ra6 {[%emt 0:01:17]} 46. c4 {[%emt 0:00:42]} bxc4 {[%emt 0:01:37]} 47. Nxc4 {[%emt 0:01:56]} Rd5 {[%emt 0:00:14]} 0-1

[Event "NY Presidents Day Schiller-C 2024"]
[Site "New York"]
[Date "2024.02.18"]
[Round "6.2"]
[White "Tang, Benjamin"]
[Black "Quesada Vera, Liordis"]
[Result "0-1"]
[ECO "C02"]
[WhiteElo "2167"]
[BlackElo "2337"]
[Annotator "ChessBase"]
[PlyCount "70"]
[EventDate "2024.02.14"]
[EventType "schev"]
[EventCountry "USA"]
[SourceTitle "playchess.com"]
[Source "ChessBase"]
[SourceQuality "1"]
[TimeControl "5400+30"]

1. e4 {[%emt 0:01:43]} e6 {[%emt 0:25:53]} 2. d4 {[%emt 0:00:08]} d5 {[%emt 0:00:21]} 3. e5 {[%emt 0:00:06]} c5 {[%emt 0:00:11]} 4. c3 {[%emt 0:00:03]} Qb6 {[%emt 0:00:13]} 5. Nf3 {[%emt 0:00:33]} Bd7 {[%emt 0:00:11]} 6. Be2 {[%emt 0:03:16]} cxd4 {[%emt 0:00:09]} 7. cxd4 {[%emt 0:00:08]} Bb5 {[%emt 0:00:04]} 8. Nc3 {[%emt 0:04:00]} Bxe2 {[%emt 0:00:09]} 9. Nxe2 {[%emt 0:00:48]} Nc6 {[%emt 0:00:15]} 10. O-O {[%emt 0:02:32]} Nge7 {[%emt 0:00:05]} 11. h4 {[%emt 0:03:11]} h6 {[%emt 0:15:07]} 12. h5 {[%emt 0:03:55]} g6 {[%emt 0:05:26]} 13. Rb1 {[%emt 0:11:44]} gxh5 {[%emt 0:03:22]} 14. Ng3 {[%emt 0:07:39]} h4 {[%emt 0:01:20]} 15. Nh5 {[%emt 0:02:32]} O-O-O {[%emt 0:00:12]} 16. Be3 {[%emt 0:14:17]} Nf5 {[%emt 0:00:39]} 17. b4 {[%emt 0:02:18]} Rg8 {[%emt 0:00:26]} 18. Kh2 {[%emt 0:03:22]} Be7 {[%emt 0:00:30]} 19. Qd3 {[%emt 0:03:16]} Rg4 {[%emt 0:01:40]} 20. Nf4 {[%emt 0:03:30]} Kb8 {[%emt 0:09:14]} 21. a3 {[%emt 0:03:31]} Bg5 {[%emt 0:04:44]} 22. Nxg5 {[%emt 0:01:17]} Rxg5 {[%emt 0:01:45]} 23. Rg1 {[%emt 0:04:57]} Ncxd4 {[%emt 0:01:05]} 24. a4 {[%emt 0:05:21]} Nxe3 {[%emt 0:00:25]} 25. fxe3 {[%emt 0:00:46]} Nc6 {[%emt 0:00:42]} 26. a5 {[%emt 0:01:07]} Qc7 {[%emt 0:00:16]} 27. Rgc1 {[%emt 0:00:57]} Qd7 {[%emt 0:01:36]} 28. Nh3 {[%emt 0:02:08]} Rg3 {[%emt 0:01:11]} 29. Qc3 {[%emt 0:01:27]} d4 {[%emt 0:02:12]} 30. Qc5 {[%emt 0:00:34]} Qd5 {[%emt 0:00:48]} 31. Qxd5 {[%emt 0:00:38]} Rxd5 {[%emt 0:00:03]} 32. exd4 {[%emt 0:02:08]} Rxd4 {[%emt 0:00:23]} 33. Rc5 {[%emt 0:01:23]} Rd2 {[%emt 0:01:20]} 34. Nf4 {[%emt 0:00:49]} Rg5 {[%emt 0:02:09]} 35. a6 {[%emt 0:02:30]} Nxe5 {[%emt 0:01:51]} 0-1